Cogmind - Beta 16 @@@ ROGUE MODE // 2026.02.07 @ 21:26:58 Player: shapeshifter Result: Destroyed by QH-0VR(R) with Subdweller Machine Gun Performance ------------- Evolutions (0) 0 Regions Visited (2) 400 Robots Destroyed (24) 120 Value Destroyed (770) 770 Prototype IDs (12) 240 Alien Tech Used (0) 0 Bonus (-46) -46 TOTAL SCORE: 1484 Bonus ------- Friendly Fire -46 Cogmind --------- Core Integrity 0/250 Matter 286/300 Energy 100/100 System Corruption 0% Temperature Cool (0) Movement Rolling (210) Ox10 Location -10/Subcaves Parts ------- > --- POWER (1) -------- Subdweller Power Source > --- PROPULSION (2) --- Subdweller Monowheel Subdweller Monowheel > --- UTILITY (2) ------ Humpback > --- WEAPON (2) ------- Subdweller Machine Gun Battle Cannon > --- INVENTORY (35) --- Subdweller Monowheel Flightbrick Huge Storage Unit Subdweller Optics Makeshift Light Armor Plating Scrap Shield Rainbow Chip Subdweller Beam Cannon Subdweller Machine Gun Barrage Gun Battle Cannon Grenade Launcher Scrap Shield Fragment (47) SUBCON Basin (Full) Peak State ------------ > --- POWER ------------ Subdweller Power Source > --- PROPULSION ------- Subdweller Monowheel Subdweller Monowheel > --- UTILITY ---------- Huge Storage Unit Makeshift Light Armor Plating > --- WEAPON ----------- Subdweller Machine Gun Barrage Gun > --- INVENTORY -------- Subdweller Power Source Flightbrick Scrap Shield Rainbow Chip Subdweller Machine Gun Grenade Launcher SUBCON Basin [Rating: 39] Favorites ----------- Power Subdweller Power Source Engine Subdweller Power Source Propulsion Subdweller Monowheel Treads Light Treads Wheel Subdweller Monowheel Utility Humpback Device Seismic Detector Storage Humpback Protection Makeshift Light Armor Plating Weapon Subdweller Machine Gun Energy Gun Subdweller Laser Energy Cannon Subdweller Beam Cannon Ballistic Gun Subdweller Machine Gun Ballistic Cannon Battle Cannon Build | -11 -10 -10 ------- Run | Yrd Mat Sub Slots Evolved . | . . . Power . | . . . Propulsion . | . . . Utility . | . . . Weapon . | . . . Parts Attached 41 | 7 4 30 Power 5 | 1 . 4 Engine 5 | 1 . 4 Core . | . . . Reactor . | . . . Propulsion 12 | 2 . 10 Treads 3 | 2 . 1 Leg . | . . . Wheel 9 | . . 9 Hover . | . . . Flight . | . . . Utility 7 | 2 2 3 Device 2 | 1 . 1 Storage 4 | 1 2 1 Processor . | . . . Hackware . | . . . Protection 1 | . . 1 Artifact . | . . . Weapon 17 | 2 2 13 Energy Gun 3 | 2 . 1 Energy Cannon 1 | . . 1 Ballistic Gun 12 | . 2 10 Ballistic Cannon 1 | . . 1 Launcher . | . . . Special Weapon . | . . . Impact Weapon . | . . . Slashing Weapon . | . . . Piercing Weapon . | . . . Special Melee Weapon . | . . . Unidentified Prototypes . | . . . Parts Lost 11 | . . 11 Power 1 | . . 1 Propulsion 5 | . . 5 Utility 1 | . . 1 Weapon 4 | . . 4 Highest Loss Streak 3 | . . 3 To Critical Strikes . | . . . Average Backups 9 | 3 8 10 Power . | . 1 . Propulsion 1 | 1 2 1 Utility 4 | . 2 4 Weapon 3 | . 2 3 Tool/Special . | . . . Unused Backups 12 | . 1 11 Power . | . . . Propulsion 1 | . . 1 Utility 8 | . . 8 Weapon 3 | . 1 2 Tool/Special . | . . . Average Slot Usage (%) 90 | . 99 89 Engine 13 | . 14 13 Treads 8 | . 28 5 Wheel 18 | . . 21 Device 5 | . 14 3 Storage 14 | . 14 14 Protection 1 | . . 1 Energy Gun 2 | . 4 1 Ballistic Gun 22 | . 22 21 Ballistic Cannon 3 | . . 4 Peak Build Rating 39 | 7 8 39 Average Rating 27 | 5 7 31 On Entrance 5 | . 7 8 Avg Prop Armor Cover (%) 9 | . . 9 Naked Turns . | . . . Heaviest Build 217 | 13 50 217 Greatest Support 40 | 40 40 40 Greatest Overweight (x) 10 | . 1 10 Average Overweight (x) 4 | . . 5 Largest Inventory Capacity 35 | 8 25 35 Average Capacity 27 | 7 16 30 Most Carried 34 | 6 9 34 Average Carried 23 | 3 8 26 Final Capacity 35 | 8 20 35 Final Carried 32 | 5 9 32 Class Distribution -------------------- 52% | Hauler-Mutant 35% | Mutant 10% | Scavenger-Mutant Dominant Class ---------------- Mutant | -10/Materials Hauler-Mutant | -10/Subcaves Resources | -11 -10 -10 ----------- Run | Yrd Mat Sub Matter Collected 1194 | 270 20 904 Remotely . | . . . Salvage Created 868 | 61 . 807 Parts 66 | 9 . 57 Haulers Intercepted . | . . . Recyclers Shooed . | . . . Parts Field Recycled . | . . . Retrieved Matter . | . . . Parts Self-Destructed 8 | . . 8 Prevented . | . . . Parts Restored . | . . . Kills | -11 -10 -10 ------- Run | Yrd Mat Sub Combat Hostiles Destroyed 21 | . . 21 Guns 19 | . . 19 Cannons 2 | . . 2 Classes Destroyed 6 | 2 . 4 Worker 1 | 1 . . Tunneler 2 | 2 . . Swarmer 3 | . . 3 Sentry 1 | . . 1 Artisan 2 | . . 2 Subdweller 17 | . . 17 Best Kill Streak 3 | 2 . 3 Combat Bots Only 3 | . . 3 Max Kills in Single Turn 1 | 1 . 1 Gunslinging . | . . . Exploded . | . . . Melee . | . . . Uniques/NPCs Destroyed . | . . . Combat | -11 -10 -10 -------- Run | Yrd Mat Sub Hostile Shots Fired 132 | . . 132 Missed 32 | . . 32 Hits 100 | . . 100 Projectile 100 | . . 100 Critical Strikes 1 | . . 1 Damage Taken 2012 | . . 2012 Core 251 | . . 251 Absorbed by Shields . | . . . Core Remaining (%) 100 | 100 . . Volleys Fired 135 | 4 1 130 Largest 2 | 2 2 2 Hottest 110 | 80 40 110 Shots Fired 261 | 8 2 251 Gun 252 | 8 2 242 Cannon 9 | . . 9 Launcher . | . . . Special . | . . . Kinetic 235 | . 2 233 Thermal 26 | 8 . 18 Explosive . | . . . Electromagnetic . | . . . Robot Hit Streak 17 | 3 4 17 Robot Miss Streak 3 | 1 1 3 Penetration Max . | . . . Secondary Targets 5 | . . 5 Max Gunslinging Chain 1 | . . 1 Shots Hit Robots 123 | 5 1 117 Core Hits 45 | 3 . 42 Critical Kills . | . . . Critical Parts Destroyed . | . . . Critical Strikes . | . . . Melee Attacks . | . . . Impact . | . . . Slashing . | . . . Piercing . | . . . Sneak Attacks . | . . . Combat Hostiles . | . . . Follow-up Attacks . | . . . Damage Inflicted 2023 | 55 10 1958 Guns 1952 | 55 10 1887 Cannons 71 | . . 71 Explosions . | . . . Melee . | . . . Ramming . | . . . Kinetic 1796 | . 10 1786 Thermal 227 | 55 . 172 Explosive . | . . . Electromagnetic . | . . . Impact . | . . . Slashing . | . . . Piercing . | . . . Highest Corruption . | . . . Average Corruption . | . . . Corruption Purged . | . . . Corruption Blocked . | . . . Overload Shots . | . . . Overflow Damage . | . . . Projectiles . | . . . Explosions . | . . . Melee . | . . . Knockbacks . | . . . Impact . | . . . Kinetic . | . . . Secondary . | . . . Self-Inflicted Damage . | . . . Shots . | . . . Rammed . | . . . Targets Rammed . | . . . Kicked . | . . . Crushed . | . . . Highest Temperature 36 | 36 . 5 Average Temperature 15 | 20 . 3 Received Heat Transfer 270 | . . 270 Siege Activations . | . . . Martial Activations . | . . . Shielding Activations . | . . . Robots Disrupted . | . . . Combat Hostiles . | . . . Robots Corrupted . | . . . Combat Hostiles . | . . . Parts Fried . | . . . Impact Corruptions . | . . . Robots Melted . | . . . Combat Hostiles . | . . . Parts Melted 1 | . . 1 Heat Transferred 337 | 125 . 212 Parts Sabotaged . | . . . Parts Stolen . | . . . Parts Stripped . | . . . Power Chain Reactions . | . . . Alert | -11 -10 -10 ------- Run | Yrd Mat Sub Maximum Alert Level . | . . . Low Security (%) 100 | 100 100 . Level 1 . | . . . Level 2 . | . . . Level 3 . | . . . Level 4 . | . . . Level 5 . | . . . High Security . | . . . Max Security . | . . . Peak Influence 10 | 10 . . Initial . | . . . Average . | 1 . . Influence Increases 105 | 15 . 90 Destroy 0b10 Robot/C 80 | . . 80 Destroy 0b10 Robot/NC 15 | 15 . . Destroy Leader 10 | . . 10 Influence Decreases 105 | 15 . 90 Time Decay 85 | 15 . 70 Lost Part 20 | . . 20 Squads Dispatched . | . . . Investigation . | . . . Extermination . | . . . Reinforcement . | . . . Assault . | . . . Garrison . | . . . Intercept . | . . . Searches Triggered . | . . . Construction Impeded . | . . . Haulers Reinforced . | . . . Active Scanning Responses . | . . . Cargo Convoy Interrupts . | . . . Stealth | -11 -10 -10 --------- Run | Yrd Mat Sub Distress Signals . | . . . Communications Jammed . | . . . Distress Signals . | . . . Times Spotted 24 | . 2 22 Peak Tracking Total 3 | . 1 3 Tactical Retreats . | . . . Traps | -11 -10 -10 ------- Run | Yrd Mat Sub Traps Triggered . | . . . Indirectly . | . . . Trap Hack Attempts . | . . . Triggered . | . . . Disarmed . | . . . Reprogrammed . | . . . Reused . | . . . Traps Extracted . | . . . Installed . | . . . Triggered . | . . . Machines | -11 -10 -10 ---------- Run | Yrd Mat Sub Machines Disabled 2 | . . 2 Max in Single Turn 1 | . . 1 Machines Repaired . | . . . Machines Dismantled . | . . . Machines Sabotaged . | . . . Overloaded Fab Kills . | . . . Hacking | -11 -10 -10 --------- Run | Yrd Mat Sub Machines Accessed 5 | . 1 4 Terminals . | . . . Fabricators . | . . . Repair Stations . | . . . Recycling Units 1 | . 1 . Scanalyzers . | . . . Garrison Access . | . . . Total Hacks 9 | . 1 8 Successful 9 | . 1 8 Failed . | . . . Catastrophic . | . . . Database Lockouts . | . . . Manual . | . . . Terminals . | . . . Fabricators . | . . . Repair Stations . | . . . Recycling Units 1 | . 1 . Scanalyzers . | . . . Garrison Access . | . . . Terminal Hacks 8 | . . 8 Record 5 | . . 5 Open Door 1 | . . 1 Proto ID Catalog 1 | . . 1 Release Object 1 | . . 1 Fabricator Hacks . | . . . Repair Station Hacks . | . . . Recycling Unit Hacks 1 | . 1 . Retrieve Components 1 | . 1 . Scanalyzer . | . . . Garrison Access Hacks . | . . . Unauthorized Hacks . | . . . Terminals . | . . . Fabricators . | . . . Repair Stations . | . . . Recycling Units . | . . . Scanalyzers . | . . . Garrison Access . | . . . Data Cores Recovered . | . . . Used . | . . . Hacking Detections . | . . . Full Trace Events . | . . . Feedback Events . | . . . Feedback Blocked . | . . . Robot Schematics Acquired . | . . . Robots Built . | . . . Authchips . | . . . Time . | . . . Total Robot Build Rating . | . . . Part Schematics Acquired . | . . . Parts Built . | . . . Authchips . | . . . Time . | . . . Total Part Build Rating . | . . . Part Studies Acquired . | . . . Parts Repaired . | . . . Time . | . . . Parts Recycled . | . . . Recycled Matter . | . . . Retrieved Matter . | . . . Retrieved Components 3 | . 3 . Parts Scanalyzed . | . . . Part Schematics Acquired . | . . . Parts Damaged . | . . . Bothacking | -11 -10 -10 ------------ Run | Yrd Mat Sub Used RIF Installer . | . . . Robots Hacked . | . . . Non-combat . | . . . Combat . | . . . Robot Hacks Applied . | . . . Relay Couplers Released . | . . . Fabnet Peak Effective % . | . . . Robots Rewired . | . . . Allies Hacked . | . . . Hacks Repelled . | . . . Allies | -11 -10 -10 -------- Run | Yrd Mat Sub Total Allies . | . . . Largest Group . | . . . Highest-Rated Group . | . . . Highest-Rated Ally . | . . . Total Orders . | . . . Ally Attacks . | . . . Total Damage . | . . . Kills . | . . . Allies Corrupted . | . . . Allies Melted . | . . . Intel | -11 -10 -10 ------- Run | Yrd Mat Sub Active Infowar (turns) 1278 | 28 416 834 Terrain 545 | . . 545 Seismic 733 | 28 416 289 Robot Analysis Total . | . . . Derelict Logs Recovered 2 | . . 2 Drone Launches . | . . . Drone Recoveries . | . . . Exploration | -11 -10 -10 ------------- Run | Yrd Mat Sub Turns Passed 3660 | 151 416 3093 Spaces Moved 1751 | 91 114 1546 Core 22 | 22 . . Treads 236 | 69 114 53 Legs . | . . . Wheels 1493 | . . 1493 Hover . | . . . Flight . | . . . Fastest Speed 50 | 50 160 107 Average Speed 165 | 133 192 165 Slowest Speed 240 | 160 240 240 Overloaded Moves . | . . . Propulsion Burnouts . | . . . Robots Hopped . | . . . Potential Cave-ins . | . . . Cave-ins Triggered . | . . . Exploration Rate (%) 42 | 5 30 92 Regions Visited 2 Branch Regions 1 Pre-discovered Areas . | . . . Known Exits Taken . | . . . Unknown Exits Taken 2 | 1 1 . Scrap Searched 2 | . . 2 Spaces Dug . | . . . Terrain Destroyed . | . . . Melee . | . . . Projectile . | . . . AOE . | . . . Terrain Rammed . | . . . Walls Destroyed . | . . . Machines Disabled . | . . . Actions | -11 -10 -10 --------- Run | Yrd Mat Sub Total 2259 | 113 310 1836 Wait 244 | . 182 62 Move 1749 | 90 113 1546 Hop . | . . . Pick Up 55 | 12 6 37 Fast Attach 5 | . 1 4 Attach 21 | 7 1 13 Detach . | . . . Swap 19 | . 2 17 Drop 31 | . 4 27 Fire 135 | 4 1 130 Melee . | . . . Ram . | . . . Kick . | . . . Crush . | . . . Escape Stasis . | . . . Rewire . | . . . Trap . | . . . Miscellaneous . | . . . Route ------- -11/Scrapyard -10/Materials (discovered 2 exits: [*Mat] / *Sub) -10/Subcaves (discovered 2 exits: [*Mat x2]) History --------- Turn | Location | Event 6 | -11/Scrapyard | Discovered new exit (range 15) 152 | -11/Scrapyard | Entered Materials 310 | -10/Materials | Build established: Mutant 314 | -10/Materials | Discovered new exit (range 3) 546 | -10/Materials | Discovered new exit (range 5) 568 | -10/Materials | Entered Subcaves 569 | -10/Subcaves | Approached by a straggling Scientist 577 | -10/Subcaves | Ambushed by Subdwellers from Twisted Machinery 851 | -10/Subcaves | A Subdweller sparked back to life 851 | -10/Subcaves | A Subdweller sparked back to life 851 | -10/Subcaves | A Subdweller sparked back to life 891 | -10/Subcaves | Found Prototype Processor 1068 | -10/Subcaves | Found SUBCON Basin 1201 | -10/Subcaves | Build established: Scavenger-Mutant 1288 | -10/Subcaves | Core integrity fell below 50% 1329 | -10/Subcaves | Lost 3 parts (1n2w) 1343 | -10/Subcaves | A swath of the cavern ceiling suddenly collapsed 1469 | -10/Subcaves | Visited 4L-MR0's lab 1475 | -10/Subcaves | Identified Rainbow Chip 1487 | -10/Subcaves | Found Flightbrick 1815 | -10/Subcaves | Shifting Twisted Machinery released Shrapnel Trap 1842 | -10/Subcaves | Shifting Twisted Machinery released Sub. Machine Gun 2035 | -10/Subcaves | Build established: Hauler-Mutant 2190 | -10/Subcaves | A swath of the cavern ceiling suddenly collapsed 2441 | -10/Subcaves | Learned Materials trap positions 2448 | -10/Subcaves | Visited Clippyterm 2454 | -10/Subcaves | Learned Factory fabricator intel 2492 | -10/Subcaves | Discovered new exit (range 14) 2510 | -10/Subcaves | Shifting Twisted Machinery released Sub. Beam Cannon 2523 | -10/Subcaves | Shifting Twisted Machinery released Battle Cannon 2681 | -10/Subcaves | Core integrity fell below 20% 2739 | -10/Subcaves | Discovered new exit (range 12) 3661 | -10/Subcaves | Destroyed by QH-0VR(R) with Subdweller Machine Gun Last Messages --------------- 02732_ Subatomizers dissect the Disposable Heat Sink. 02736_ Acquired 10 matter. 02739_ EXIT=FOUND 02874_ Acquired 14 matter. 03050_ Y-45 Defender destroyed. 03061_ Acquired 7 matter. 03066_ Heat Sink fries itself beyond repair. 03106_ Sub. Power Source shoots sparks and powers down. 03543_ Sub. Monowheel shoots sparks and powers down. 03604_ Acquired 7 matter. 03625_ QW-T7S(u) builds Twisted Machinery. 03646_ QW-T7S(u) cries out in pain. 03646_ QW-T7S(u) destroyed. 03649_ Acquired 7 matter. 03656_ QH-0VR(R) angrily emerges from the Twisted Machinery. 03656_ QH-0VR(R): "ECOKILL!" Map ----- +----------------------------------------------------+ | ??# #???????????????????????????????????#! | | ??##### ##???????????????????????????????????# ! | | ??????# ##???????????????????????????????????## # | | ??????# #???????????????????????????????????#" # | | ??????# #??##???????????????????????????????# | | ?###??# #### ##??????????????????????????????# | | ## #### ## #??????????????????????????????# | | ### #??????????????????????????????# " | | ## ##??????????????????????????????##"" | | # #### #????????????????????????????????## | | # ## ####?????????????????????????????????# | | ## ##???????????????????????????????????# | | # ###?????????????????????????????????# | | %#?????????????????????????????????#" | | ##?????????????????????????????????#" | | % ##???????????????????????????????##### | | ### ##??????????????????????????????##""## | | ##?# #????????????????????????????### ""## | | # ###?## #######?????????????????#######" """## | | ######## ###?# % ####???????????## #" #""" """ | | ?### #???## ##??????????# """ " | | %# ####??## #####??????# # ## | | ### ##??### """ #????"??????# # | | ## ## #????##"" "%#?##"""?????# # ## | | ?## ## #??#### ""R%*##""""" ????## ## #### | | ### ## #??## @"" """ #???# ####?## | | ## #??# " " " " #???## #???# | | ## ##?## ""#### " ???# ###???## | | ### #### ## # "#???"##?????## ######## | | #?## # #### ##???""###??## ### | | #??# #?# # #????? ##?# | | #?## ##?#% #????? ###"## # | | ##?# ##### ##??# ##???? """"" ## | | ???## #???#####?# ###??# """"" | | ????# ## ###??## ### #### " " #" | | ????##?## #?## ## "## """ #####"" | | ????????# ### "" """#?### "" ## | | ???###### #?# " #?# | | #### ### "###" ### | | % #####?# ###" ## # | | ## ######?????## " ##### | | % #####???????????### ##?###" ## | | ## ####?????????????????## #???## ### ### | | ?#####?????????????????????## %##????####?###??## | | ????????????????????????????#####????????????????? | | ?????????????????????????????????????????????????? | | ?????????????????????????????????????????????????? | | ?????????????????????????????????????????????????? | | ?????????????????????????????????????????????????? | | ?????????????????????????????????????????????????? | +----------------------------------------------------+ Best States ------------- Heat Dissipation 25 Energy Generation 15 Energy Capacity 250 Matter Stores 300 Matter Capacity 300 Sight Range 16 Terrain Scan Range 16 Terrain Scan Density 10 Armor Coverage 100 Evasion (%) 50 Recoil Reduction 2 Item Schematics ----------------- None Robot Schematics ------------------ None Fabricated ------------ Nothing Repaired ---------- Nothing Studied --------- None Alien Tech Used ----------------- None Achievements -------------- None Challenges ------------ None Game ------ Seed MasterSalvageRailgun Manual? 0 Play Time 00:14:35 Cumulative 680.8 hours Start 2026.02.07 @ 15:22:11 End 2026.02.07 @ 21:26:58 Sessions 2 Manual Loads 0 Difficulty Rogue Special Mode None Game No. 847 Rogue 847 Adventurer 0 Explorer 0 Win Type - Total 24 Types 11/1/3/3/2/0/2/2/0/0 Lore% 96 Gallery% 93 Achievement% 82 Wizard Run 0 Options --------- Layout 2 ASCII 0 Keyboard 0 Movement Mouse Keybinds 0 Fullscreen 2 Font 24/Tamsyn Map View 50x44 Zoom Use 0% Tactical HUD 1 Map Filters NONE Filters NONE Steam 1 RUN: 401be559-0333-4d85-b5ca-64348a0e9bcf